bitfinex/quotes_ETHUSD_20250319
["timestamp","ask_amount","ask_price","bid_price","bid_amount"]
[1742397467566,15.9374227,2033.9,2033.4,4.91774]
[1742397467763,11.0205227,2033.9,2033.4,4.91771]
[1742397467941,4.0983195,2033.7,2033.3,5.28936724]
[1742397468142,9.0155395,2033.7,2033.3,4.91809]
[1742397468474,4.0983195,2033.7,2033.3,4.91793]
[1742397468982,9.0154795,2033.7,2033.3,4.91793]
[1742397469185,4.91765,2033.5,2033.1,5.736]
[1742397469350,5.72305,2033.5,2033.1,4.9185]
[1742397469552,5.72305,2033.5,2033.0,0.36062524]
[1742397469553,4.0983195,2033.3,2033.0,0.36062524]
[1742397469754,7.19692895,2033.5,2032.8,4.91932]
[1742397469997,9.8213695,2033.5,2033.1,4.91851]
[1742397470147,4.0983195,2033.2,2032.8,4.9191]
[1742397470347,4.0983195,2033.2,2032.6,0.0889188]
[1742397470348,4.0983195,2032.9,2032.6,0.0889188]
[1742397470549,4.0983195,2032.7,2032.6,0.0889188]
[1742397471243,9.0178795,2032.7,2032.6,0.0889188]
[1742397473252,9.46219842,2032.7,2032.6,0.0889188]
[1742397475356,10.28409842,2032.7,2032.6,0.0889188]
[1742397476295,5.299,2032.8,2032.6,0.0889188]
[1742397476489,10.23524842,2033.1,2032.6,1.08183168]
[1742397476691,4.54263842,2032.9,2032.7,4.91947]
[1742397476894,4.54263842,2032.9,2032.6,0.0889188]
[1742397477058,9.46190842,2032.9,2032.6,0.0889188]
[1742397477389,4.54263842,2032.7,2032.6,0.0889188]
[1742397477587,9.52369873,2032.7,2032.6,0.0889188]
[1742397477791,12.21201529,2032.7,2032.6,0.0889188]
[1742397479502,4.92168,2031.9,2031.4,4.92262]
[1742397479659,4.54263842,2032.0,2031.2,4.92316]
[1742397479998,5.289,2032.1,2031.9,4.92149]
[1742397480159,4.54263842,2032.2,2031.9,5.905651]
[1742397480361,4.54263842,2032.0,2031.9,0.984311]
[1742397480694,4.54263842,2032.0,2031.6,7.92211]
[1742397480695,9.46408842,2032.0,2031.6,7.92211]
[1742397480880,4.54263842,2032.0,2031.7,4.92182]
[1742397481067,4.54263842,2032.0,2031.8,4.92168]
[1742397481392,4.54263842,2032.0,2031.7,4.92182]
[1742397482095,4.54263842,2032.3,2032.0,4.92125]
[1742397482301,4.54263842,2032.3,2032.0,5.494405]
[1742397482597,4.54263842,2032.3,2032.0,0.573155]
[1742397482781,4.54263842,2032.1,2031.8,5.73202]
[1742397482984,9.46372842,2032.1,2031.8,0.8103]
[1742397483199,4.54263842,2031.9,2031.7,3.0]
[1742397483506,4.92184,2031.8,2031.4,5.3004215]
[1742397483800,10.21737,2032.0,2031.6,4.9222]
[1742397483973,15.13881,2032.0,2031.6,5.41429]
[1742397484168,4.54263842,2031.9,2031.4,3.0]
[1742397484381,4.54263842,2031.5,2031.1,4.93343]
[1742397484680,4.54263842,2031.5,2031.1,0.01]
[1742397484881,14.77422842,2031.5,2031.1,0.01]
[1742397485092,4.92282,2031.4,2031.1,1.08607881]
[1742397485679,9.46561842,2031.3,2031.1,1.08607881]
[1742397485995,4.54263842,2031.3,2031.1,3.01]
[1742397486288,4.54263842,2031.3,2031.1,0.01]
[1742397486494,5.74169,2031.2,2031.1,0.01]
[1742397486675,0.8185,2031.2,2031.1,0.01]
[1742397486878,4.54263842,2031.3,2031.1,4.93343]
[1742397487077,4.54263842,2031.5,2031.2,4.92297]
[1742397487279,5.299,2031.5,2031.2,4.923]
[1742397487497,5.299,2031.5,2031.2,9.84601]
[1742397487702,5.299,2031.5,2031.2,4.923]
[1742397487901,4.54263842,2031.5,2031.2,4.923]
[1742397488105,9.46519842,2031.5,2031.2,1.12313009]
[1742397488274,4.54263842,2031.5,2031.2,6.04623009]
[1742397488480,4.54263842,2031.5,2031.2,5.89623009]
[1742397488705,9.46512842,2031.5,2031.2,0.97313009]
[1742397488880,9.46573842,2031.3,2031.1,0.01]
[1742397489097,5.32153842,2031.3,2031.1,0.01]
[1742397489285,5.3,2031.2,2031.1,0.01]
[1742397489488,10.28473643,2031.2,2031.1,0.01]
[1742397489693,10.22319,2031.2,2031.1,0.01]
[1742397490001,12.76225284,2031.2,2031.1,0.01]
[1742397490203,10.22319,2031.2,2031.1,0.01]
[1742397491703,5.296,2031.4,2031.1,0.01]
[1742397491908,5.296,2031.4,2031.2,4.92317]
[1742397492110,9.83963842,2031.5,2031.3,0.985651]
[1742397492275,4.54263842,2031.3,2031.1,4.93343]
[1742397492676,9.83963842,2031.5,2031.2,4.92301]
[1742397492884,5.297,2031.5,2031.3,5.416021]
[1742397493106,9.46468842,2031.7,2031.3,5.416021]
[1742397493305,5.297,2031.6,2031.4,4.92247]
[1742397493471,5.297,2031.6,2031.4,10.3866371]
[1742397493671,5.295,2031.8,2031.6,4.92211]
[1742397494016,4.92135,2032.0,2031.6,4.92211]
[1742397494219,4.54263842,2031.9,2031.6,4.92211]
[1742397494424,9.46463842,2031.7,2031.4,0.5415771]
[1742397494711,9.46463842,2031.7,2031.3,6.219741]
[1742397494712,4.54263842,2031.5,2031.3,0.493301]
[1742397495073,9.46522842,2031.5,2031.3,0.493301]
[1742397495479,9.46522842,2031.5,2031.1,10.66661]
[1742397495480,4.54263842,2031.5,2031.1,0.01]
[1742397495808,4.92302,2031.3,2031.1,0.01]
[1742397496101,10.22019,2031.2,2031.1,0.01]
[1742397496313,5.297,2031.2,2031.1,0.01]
[1742397496613,5.301,2031.5,2031.2,4.92303]
[1742397496822,14.76798842,2031.6,2031.2,9.84606]
[1742397497174,14.76798842,2031.6,2031.2,4.92303]
[1742397497413,4.54263842,2031.6,2031.3,4.92295]
[1742397497714,4.54263842,2031.6,2031.4,4.92253]
[1742397497715,5.299,2031.6,2031.4,4.92253]
[1742397497921,5.299,2031.6,2031.4,5.907084]
[1742397498718,0.8025,2031.9,2031.4,5.907084]
[1742397498719,0.8025,2031.9,2031.5,4.9223]
[1742397498880,5.296,2031.9,2031.6,4.92212]
[1742397499079,4.54263842,2032.0,2031.4,6.733844]
[1742397499282,9.83563842,2032.0,2031.7,4.92175]
[1742397499781,14.75693842,2032.0,2031.7,4.92198]
[1742397500053,14.75693842,2032.0,2031.6,4.92216]
[1742397500254,4.54263842,2032.0,2031.7,9.84377]
[1742397500451,5.289,2032.0,2031.6,0.6733414]
[1742397500759,9.46343842,2032.2,2031.8,5.69928]
[1742397500960,4.54263842,2032.2,2031.9,4.92142]
[1742397501262,4.54263842,2032.2,2032.0,4.92103]
[1742397501464,5.286,2032.3,2032.1,4.92093]
[1742397501665,9.46295842,2032.4,2032.1,4.92093]
[1742397501666,4.54263842,2032.4,2032.1,4.92093]
[1742397501959,5.283,2032.4,2032.3,4.92053]
[1742397502162,9.46248842,2032.6,2032.3,4.92053]
[1742397502367,4.54263842,2032.6,2032.3,4.92053]
[1742397502571,0.8103,2032.9,2032.3,1.066689]
[1742397502864,14.74281842,2032.9,2032.5,4.92002]
[1742397503165,9.82363842,2032.9,2032.6,4.91979]
[1742397503333,14.74276842,2032.9,2032.5,4.91992]
[1742397503534,14.74276842,2032.9,2032.5,4.91987]
[1742397503535,9.82363842,2032.9,2032.5,4.91987]
[1742397503755,5.281,2032.9,2032.6,4.91966]
[1742397503956,5.281,2032.9,2032.7,5.745]
[1742397504161,5.281,2032.9,2032.5,6.3442959]
[1742397504454,14.74273842,2032.9,2032.6,4.9198]
[1742397504786,5.73025,2032.6,2032.3,3.0]
[1742397505245,9.46221842,2032.7,2032.3,7.92043]
[1742397505783,9.46221842,2032.7,2032.4,4.92028]
[1742397506083,5.277,2032.7,2032.5,4.91993]
[1742397506243,5.278,2032.8,2032.5,6.204004]
[1742397506446,5.278,2032.8,2032.5,11.123934]
[1742397506859,5.278,2032.8,2032.5,6.203934]
[1742397507186,5.278,2032.8,2032.6,4.91979]
[1742397507802,5.278,2032.8,2032.5,6.203924]
[1742397507996,5.278,2032.8,2032.6,4.91969]
[1742397508160,10.19743,2032.8,2032.4,4.92013]
[1742397508483,5.278,2032.8,2032.5,4.92002]
[1742397508681,10.19732,2032.8,2032.4,4.92013]
[1742397509180,15.11684,2032.8,2032.4,4.92013]
[1742397509391,4.54263842,2032.7,2032.4,9.84026]
[1742397509572,4.54263842,2032.7,2032.5,4.92003]
[1742397509748,5.278,2032.8,2032.6,4.91979]
[1742397510288,5.278,2032.8,2032.6,4.91962]
[1742397510492,5.259,2033.2,2032.7,5.70715]
[1742397510799,5.259,2033.2,2032.6,3.0]
[1742397510800,9.46181842,2032.9,2032.6,3.0]
[1742397510955,4.91935,2032.8,2032.5,1.51647603]
[1742397511160,9.46181842,2032.9,2032.5,6.43630603]
[1742397511356,4.91946,2032.8,2032.5,0.96647603]
[1742397511557,4.54263842,2032.7,2032.4,3.7876]
[1742397511764,9.46233842,2032.7,2032.4,3.0]
[1742397511958,4.54263842,2032.7,2032.4,3.0]
[1742397512184,9.46232842,2032.7,2032.3,5.90264341]
[1742397512351,9.46232842,2032.7,2032.3,3.98215341]
[1742397512562,4.91992,2032.6,2032.3,3.0]
[1742397512884,9.46232842,2032.7,2032.3,7.92043]
[1742397513084,11.61544784,2032.8,2032.6,4.91974]
[1742397513085,5.258,2032.8,2032.6,4.91974]
[1742397513651,10.17733,2032.8,2032.4,4.92022]
[1742397513962,10.17733,2032.8,2032.4,7.92022]
[1742397514373,4.9196,2032.7,2032.4,3.0]
[1742397514698,4.54263842,2032.7,2032.4,3.0]
[1742397514854,4.54263842,2032.7,2032.4,7.92028]
[1742397515059,9.46227842,2032.7,2032.4,3.0]
[1742397515265,4.91996,2032.6,2032.2,8.91088073]
[1742397515557,4.9203,2032.4,2032.0,4.92114]
[1742397515759,4.54263842,2032.3,2032.0,7.9212]
[1742397516093,4.54263842,2032.4,2032.1,4.92089]
[1742397516473,4.54263842,2032.4,2032.2,4.92073]
[1742397516668,5.254,2032.5,2032.1,0.55]
[1742397516911,0.7903,2032.7,2032.3,4.92029]
[1742397517194,15.50950842,2032.7,2032.3,4.92029]
[1742397517572,15.50950842,2032.7,2032.4,4.92019]
[1742397518102,20.42923842,2032.7,2032.3,5.67369]
[1742397518283,15.50950842,2032.7,2032.3,5.67369]
[1742397518487,9.46278842,2032.5,2032.1,5.70384]
[1742397518665,4.92031,2032.4,2032.0,7.92122]
[1742397518999,4.92031,2032.4,2031.8,1.18447714]
[1742397519000,4.54263842,2032.3,2031.8,4.92173]
[1742397519160,4.9211,2032.1,2031.7,10.62669]
[1742397519772,9.8423,2032.1,2031.8,3.0]
[1742397519956,5.7339,2032.1,2031.8,3.0]
[1742397520183,15.19772842,2032.1,2031.8,3.0]
[1742397520399,4.92143,2032.0,2031.6,4.92212]
[1742397520561,0.8128,2032.1,2031.7,3.0]
[1742397520766,10.17272,2032.3,2031.9,4.92132]
[1742397521666,10.17272,2032.3,2032.0,4.92116]
[1742397521866,10.17272,2032.3,2031.9,9.84278]
[1742397522062,5.252,2032.3,2032.0,4.92115]
[1742397522373,5.252,2032.3,2032.0,4.92111]
[1742397522577,5.252,2032.3,2032.0,9.84226]
[1742397522783,5.252,2032.3,2032.1,4.92101]
[1742397523199,5.239,2032.5,2032.3,4.92042]
[1742397523377,5.239,2032.5,2032.3,5.494742]
[1742397523575,4.91967,2032.7,2032.3,5.494742]
[1742397523771,9.83941,2032.7,2032.3,5.494692]
[1742397524115,9.83942,2032.7,2032.3,5.494692]
[1742397524316,10.58253842,2032.8,2032.2,5.74354]
[1742397524522,4.91995,2032.6,2032.2,5.74341]
[1742397524813,9.83992,2032.6,2032.2,5.74341]
[1742397525019,4.91995,2032.6,2032.2,5.74341]
[1742397525225,4.92013,2032.5,2032.2,0.8228]
[1742397525726,4.91965,2032.7,2032.2,0.874383]
[1742397525929,9.83938,2032.7,2032.3,4.92031]
[1742397526134,10.58253842,2032.8,2032.2,4.92065]
[1742397526313,4.91994,2032.6,2032.2,4.92065]
[1742397526503,4.92009,2032.5,2032.2,4.92074]
[1742397526706,4.54263842,2032.6,2032.1,9.84192]
[1742397526899,5.36143842,2032.4,2031.9,4.92147]
[1742397527225,9.46354842,2032.2,2031.9,3.0]
[1742397527590,4.9211,2032.1,2031.9,3.0]
[1742397527791,4.9211,2032.1,2031.8,3.0]
[1742397528324,4.9211,2032.1,2031.8,4.92172]
[1742397528631,4.54263842,2031.9,2031.6,5.74981]
[1742397528791,4.54263842,2031.9,2031.6,5.74974]
[1742397528986,4.92133,2032.0,2031.6,10.67183]
[1742397529191,4.92133,2032.0,2031.7,4.92192]
[1742397529535,4.9215,2031.9,2031.6,5.74979]
[1742397529687,9.46413842,2031.9,2031.6,3.0]
[1742397529886,9.46419842,2031.9,2031.6,3.0]
[1742397530087,4.92203,2031.7,2031.4,5.67939]
[1742397530321,4.92179,2031.8,2031.4,5.67939]
[1742397530527,4.92179,2031.8,2031.4,10.60196]
[1742397530727,4.92179,2031.8,2031.5,4.92245]
[1742397530922,4.92179,2031.8,2031.5,7.92245]
[1742397531431,4.92179,2031.8,2031.4,5.67935]
[1742397531809,4.92184,2031.8,2031.4,4.92265]
[1742397532318,4.92209,2031.7,2031.3,4.92284]
[1742397532626,14.38688842,2031.7,2031.3,4.92284]
[1742397532925,4.92226,2031.6,2031.3,4.92284]
[1742397533327,9.46472842,2031.7,2031.3,11.264695]
[1742397533629,9.46472842,2031.7,2031.4,4.9227]
[1742397533846,4.92209,2031.7,2031.4,4.9227]
[1742397534132,4.92209,2031.7,2031.2,11.18015]
[1742397534133,4.92232,2031.6,2031.2,11.18015]
[1742397534435,4.92232,2031.6,2031.3,4.92289]
[1742397535131,0.06152767,2031.6,2031.1,0.01]
[1742397535329,4.54263842,2031.4,2031.1,0.01]
[1742397535536,4.92307,2031.3,2031.1,0.01]
[1742397536231,4.92319,2031.2,2031.1,0.01]
[1742397536430,4.54263842,2031.4,2031.1,0.01]
[1742397536633,10.95788,2031.5,2031.1,4.93334]
[1742397536800,10.95788,2031.5,2031.1,6.70966681]
[1742397536996,9.46557842,2031.4,2031.1,1.00312681]
[1742397537201,9.46557842,2031.4,2031.1,0.01]
[1742397537670,10.95788,2031.5,2031.1,4.93343]
[1742397537819,4.54263842,2031.6,2031.2,5.67356]
[1742397538025,15.81978,2031.7,2031.3,4.92272]
[1742397538225,4.92225,2031.6,2031.2,5.67372]
[1742397538833,0.81285386,2032.3,2031.2,0.7927]
[1742397539120,4.92164,2031.9,2031.4,0.7927]
[1742397539325,4.92176,2031.8,2031.4,13.63779]
[1742397539628,4.92156,2031.9,2031.5,4.92244]
[1742397539832,4.92156,2031.9,2031.5,4.92246]
[1742397540147,4.92189,2031.8,2031.4,8.7154]
[1742397540359,4.9215,2031.9,2031.5,4.92245]
[1742397540546,4.92188,2031.8,2031.5,3.0]
[1742397540717,9.46497842,2031.6,2031.2,4.92311]
[1742397540923,5.71274,2031.7,2031.3,9.8456]
[1742397541138,4.92224,2031.6,2031.2,7.92314]
[1742397541960,4.92224,2031.6,2031.2,7.92306]
[1742397542332,4.92224,2031.6,2031.2,12.84608]
[1742397542550,4.92224,2031.6,2031.3,4.92292]
[1742397542746,5.7127,2031.7,2031.3,4.92292]
[1742397542951,10.63488,2031.7,2031.3,4.92292]
[1742397543153,4.92234,2031.6,2031.2,9.29452781]
[1742397543350,4.92234,2031.6,2031.2,9.29451781]
[1742397543528,9.84475,2031.6,2031.2,9.29451781]
[1742397543728,9.84475,2031.6,2031.2,7.92305]
[1742397544024,4.92234,2031.6,2031.3,4.92291]
[1742397544240,9.84469,2031.6,2031.2,7.92305]
[1742397544940,0.7907,2031.7,2031.2,3.0]
[1742397545262,4.92297,2031.3,2031.1,0.01]
[1742397546328,4.984511,2031.3,2031.1,0.01]
[1742397546525,4.92297,2031.3,2031.1,0.01]
[1742397547458,4.92319,2031.2,2031.1,0.01]
[1742397547766,5.67927,2031.3,2031.1,0.01]
[1742397547965,4.92319,2031.2,2031.1,0.01]
[1742397548457,9.46582842,2031.2,2031.1,0.01]
[1742397548668,10.22062842,2031.2,2031.1,0.01]
[1742397548830,12.22725926,2031.2,2031.1,0.01]
[1742397550943,7.68462084,2031.2,2031.1,0.01]
[1742397551145,12.22725926,2031.2,2031.1,0.01]
[1742397551664,10.22062842,2031.2,2031.1,0.01]
[1742397551865,4.92303,2031.3,2031.1,0.01]
[1742397552071,9.84618,2031.3,2031.1,0.01]
[1742397552368,4.92303,2031.3,2031.1,0.01]
[1742397552527,0.7663,2031.2,2031.1,0.01]
[1742397552894,11.77602526,2031.2,2031.1,0.01]
[1742397553933,5.68949,2031.2,2031.1,0.01]
[1742397554548,10.23212842,2031.2,2031.1,0.01]
[1742397557350,5.213,2031.2,2031.1,0.01]
[1742397558084,10.13619,2031.2,2031.1,0.01]
[1742397561310,14.24302327,2031.2,2031.1,0.01]
[1742397561592,16.7304356,2031.2,2031.1,0.01]
[1742397561902,17.5021356,2031.2,2031.1,0.01]
[1742397562263,15.01472327,2031.2,2031.1,0.01]
[1742397562671,22.12155654,2031.2,2031.1,1e-05]
[1742397565293,15.01472327,2031.2,2031.1,1e-05]
[1742397565600,14.99972327,2031.2,2031.1,1e-05]
[1742397568305,22.10655654,2031.2,2031.1,1e-05]
[1742397568513,25.30179919,2031.2,2031.1,1e-05]
[1742397569396,5.70281,2030.6,2030.1,6.72571537]
[1742397569568,4.10683327,2030.3,2030.2,4.92547]
[1742397569768,4.10683327,2030.3,2030.2,7.92547]
[1742397569968,4.10683327,2030.3,2030.1,5.74293]
[1742397570203,4.10683327,2030.3,2030.1,10.66866]
[1742397570402,4.10683327,2030.3,2030.1,5.74283]
[1742397570602,4.10683327,2030.3,2030.1,5.74281]
[1742397570803,4.10683327,2030.3,2030.2,4.92562]
[1742397570977,4.10683327,2030.3,2030.1,5.74281]
[1742397571179,4.10683327,2030.3,2030.2,4.92562]
[1742397571394,9.29683327,2030.5,2030.3,4.92536]
[1742397571599,4.10683327,2030.5,2030.4,4.92513]
[1742397571765,4.10683327,2030.5,2030.4,5.73893]
[1742397572383,4.10683327,2030.5,2030.4,0.8138]
[1742397572606,5.179,2030.6,2030.4,5.73874]
[1742397572780,5.179,2030.6,2030.5,4.92489]
[1742397573914,4.10683327,2030.7,2030.5,4.92489]
[1742397574109,4.10683327,2030.7,2030.4,11.537824]
[1742397574710,4.10683327,2030.7,2030.4,6.612724]
[1742397574912,4.10683327,2030.7,2030.4,11.537734]
[1742397575245,4.10683327,2030.7,2030.6,4.92465]
[1742397575442,9.26983327,2030.9,2030.5,4.92486]
[1742397575644,4.10683327,2030.7,2030.5,9.84959]
[1742397575948,4.10683327,2030.7,2030.4,0.8138]
[1742397575949,4.10683327,2030.7,2030.4,5.73892]
[1742397576130,9.03127327,2030.7,2030.4,5.73892]
[1742397576323,4.10683327,2030.7,2030.4,5.73892]
[1742397576523,9.03124327,2030.7,2030.4,5.73892]
[1742397576733,4.10683327,2030.7,2030.4,10.66391]
[1742397577043,4.92424,2030.8,2030.5,4.92479]
[1742397577243,4.10683327,2030.7,2030.4,7.105251]
[1742397577823,4.10683327,2030.7,2030.5,4.92485]
[1742397578137,4.10683327,2030.7,2030.5,4.92486]
[1742397578454,4.10683327,2030.7,2030.4,5.73891]
[1742397578623,4.10683327,2030.5,2030.4,0.8138]
[1742397579148,4.10683327,2030.5,2030.4,5.73893]
[1742397579826,4.10683327,2030.5,2030.3,9.85042]
[1742397580027,4.10683327,2030.5,2030.3,4.92519]
[1742397580226,4.10683327,2030.5,2030.4,4.92513]
[1742397581024,4.10683327,2030.5,2030.3,4.92519]
[1742397581025,4.10683327,2030.5,2030.3,4.92531]
[1742397581652,4.10683327,2030.5,2030.3,4.92526]
[1742397582061,4.10683327,2030.5,2030.4,4.92513]
[1742397582216,4.10683327,2030.7,2030.4,4.92513]
[1742397582418,4.10683327,2030.7,2030.5,4.92479]
[1742397582632,5.136,2030.8,2030.4,6.292259]
[1742397582839,4.10683327,2030.7,2030.4,6.292259]
[1742397583034,4.10683327,2030.7,2030.3,3.55]
[1742397583234,4.10683327,2030.7,2030.5,4.92473]
[1742397583464,4.10683327,2030.7,2030.4,4.92513]
[1742397583667,4.10683327,2030.7,2030.4,9.85016]
[1742397583846,4.10683327,2030.7,2030.5,4.92487]
[1742397584050,4.10683327,2030.7,2030.6,5.73135]
[1742397584254,4.10683327,2030.7,2030.4,4.92513]
[1742397584425,4.10683327,2030.7,2030.4,4.92498]
[1742397584623,4.10683327,2030.7,2030.5,4.92484]
[1742397585261,4.10683327,2030.7,2030.4,4.92505]
[1742397585472,4.10683327,2030.7,2030.4,9.85006]
[1742397585630,4.10683327,2030.7,2030.5,4.92485]
[1742397586268,4.10683327,2030.7,2030.4,4.92501]
[1742397586269,4.10683327,2030.7,2030.4,9.85006]
[1742397586441,4.10683327,2030.7,2030.4,4.92499]
[1742397586644,4.10683327,2030.7,2030.4,4.92498]
[1742397586860,4.10683327,2030.7,2030.4,4.92505]
[1742397587470,9.03137327,2030.7,2030.3,5.73204]
[1742397587774,4.10683327,2030.5,2030.3,5.73198]
[1742397588270,4.10683327,2030.5,2030.2,4.92553]
[1742397588564,4.10683327,2030.5,2030.2,4.9255]
[1742397588727,4.10683327,2030.5,2030.2,4.92549]
[1742397588925,4.10683327,2030.5,2030.2,9.85097]
[1742397589141,4.10683327,2030.5,2030.2,9.85095]
[1742397589337,4.10683327,2030.5,2030.2,9.85099]
[1742397589670,4.10683327,2030.5,2030.3,4.92524]
[1742397589855,4.10683327,2030.5,2030.3,9.85047]
[1742397590051,4.10683327,2030.5,2030.3,4.92523]
[1742397590761,4.10683327,2030.5,2030.4,4.92513]
[1742397591467,4.10683327,2030.7,2030.5,4.92477]
[1742397591666,4.10683327,2030.7,2030.5,0.8061]
[1742397592634,4.10683327,2030.7,2030.5,5.73098]
[1742397593081,4.10683327,2030.7,2030.4,4.92497]
[1742397593277,9.03144327,2030.7,2030.3,5.74476]
[1742397593440,9.03144327,2030.7,2030.3,10.66999]
[1742397593641,4.10683327,2030.7,2030.4,9.84997]
[1742397593841,4.10683327,2030.7,2030.4,4.92498]
[1742397594054,9.03125327,2030.7,2030.4,4.92498]
[1742397594249,4.10683327,2030.7,2030.4,4.92498]
[1742397594454,9.03127327,2030.7,2030.4,4.92498]
[1742397594866,9.03127327,2030.7,2030.3,4.92527]
[1742397595041,4.10683327,2030.5,2030.3,4.92527]
[1742397595654,4.10683327,2030.5,2030.3,9.85051]
[1742397595977,4.10683327,2030.5,2030.2,7.9256]
[1742397596286,5.0850126,2030.5,2030.2,7.92544]
[1742397596437,5.0850126,2030.5,2030.2,12.85095]
[1742397596643,5.0850126,2030.5,2030.2,7.92544]
[1742397596952,10.0099426,2030.5,2030.2,7.92544]
[1742397597282,10.0099426,2030.5,2030.2,3.0]
[1742397597585,10.0099426,2030.5,2030.2,7.92554]
[1742397598485,4.10683327,2030.5,2030.2,12.851]
[1742397598646,4.10683327,2030.5,2030.2,7.92547]
[1742397600089,9.03172327,2030.5,2030.2,7.92547]
[1742397600392,4.10683327,2030.5,2030.2,12.85101]
[1742397600680,4.10683327,2030.5,2030.4,4.92513]
[1742397600850,4.10683327,2030.5,2030.3,9.85061]
[1742397601051,4.10683327,2030.5,2030.3,4.92528]
[1742397601277,4.10683327,2030.5,2030.3,4.92523]
[1742397601476,10.06017,2030.8,2030.5,4.92487]
[1742397601683,14.16700327,2030.8,2030.5,5.72437]
[1742397601860,9.03100327,2030.8,2030.5,5.72437]
[1742397602058,9.03100327,2030.8,2030.5,0.7995]
[1742397602393,4.10683327,2030.7,2030.5,10.64901]
[1742397602886,4.10683327,2030.7,2030.6,4.92465]
[1742397603290,14.16685327,2030.9,2030.6,4.92465]
[1742397603448,4.10683327,2030.7,2030.6,4.92465]
[1742397603790,4.10683327,2030.7,2030.5,5.72432]
[1742397604283,4.10683327,2030.7,2030.5,10.64909]
[1742397604581,4.10683327,2030.7,2030.5,5.72427]
[1742397604789,4.10683327,2030.7,2030.5,5.72425]
[1742397604973,4.10683327,2030.7,2030.5,5.72423]
[1742397605652,10.30631971,2030.7,2030.3,10.63521]
[1742397605962,4.10683327,2030.5,2030.3,10.63522]
[1742397606488,4.10683327,2030.5,2030.4,4.92513]
[1742397607082,9.54071971,2030.7,2030.3,5.71016]
[1742397607278,9.54070971,2030.7,2030.3,5.71016]
[1742397607478,9.54070971,2030.7,2030.3,10.6354]
[1742397607683,4.61611971,2030.7,2030.3,5.71014]
[1742397607874,4.10683327,2030.7,2030.4,4.92495]
[1742397608075,9.03139327,2030.7,2030.3,10.63538]
[1742397608275,9.03139327,2030.7,2030.4,4.92511]
[1742397608495,4.10683327,2030.7,2030.4,4.92511]
[1742397608792,9.03124327,2030.7,2030.4,4.92511]
[1742397609128,4.10683327,2030.7,2030.4,4.92504]
[1742397609571,9.03125327,2030.7,2030.4,4.92504]
[1742397610395,4.10683327,2030.5,2030.2,7.92559]
[1742397610599,9.03180327,2030.5,2030.2,7.92559]
[1742397610803,4.10683327,2030.3,2030.2,3.0]
[1742397611099,4.10683327,2030.3,2030.1,5.74604]
[1742397611298,4.10683327,2030.3,2030.2,3.0]
[1742397611807,9.03180327,2030.5,2030.2,7.92562]
[1742397612103,5.80183868,2030.5,2030.2,7.92552]
[1742397612271,0.8091,2030.6,2030.3,4.92517]
[1742397612464,4.10683327,2030.7,2030.4,4.92504]
[1742397612666,4.10683327,2030.7,2030.4,4.92498]
[1742397613001,4.10683327,2030.7,2030.5,4.92478]
[1742397613459,5.135,2030.8,2030.6,4.92465]
[1742397613801,4.10683327,2030.7,2030.5,4.9248]
[1742397614002,4.10683327,2030.7,2030.4,5.69333]
[1742397614165,4.10683327,2030.7,2030.4,10.6183]
[1742397614365,4.10683327,2030.7,2030.5,4.92484]
[1742397615884,4.10683327,2030.7,2030.5,9.84962]
[1742397616196,9.24183327,2030.8,2030.6,4.92444]
[1742397616589,9.24183327,2030.8,2030.5,4.92482]
[1742397617407,14.16602327,2030.8,2030.5,4.92482]
[1742397617717,9.24183327,2030.8,2030.5,4.92475]
[1742397618090,9.24183327,2030.8,2030.5,4.9247]
[1742397618406,9.24183327,2030.8,2030.6,4.9246]
[1742397618615,9.24183327,2030.8,2030.6,4.92464]
[1742397619315,21.94814,2031.3,2030.6,4.92464]
[1742397619316,4.10683327,2031.3,2031.1,4.92334]
[1742397619512,4.10683327,2031.3,2031.0,4.92355]
[1742397619513,9.02981327,2031.3,2030.9,4.92389]
[1742397619706,4.10683327,2031.3,2031.0,4.92353]
[1742397620114,4.10683327,2031.3,2031.0,9.84706]
[1742397620345,4.10683327,2031.3,2031.1,4.92326]
[1742397620519,9.24183327,2031.5,2031.3,4.92283]
[1742397621405,4.10683327,2031.5,2031.3,4.92283]
[1742397621709,4.10683327,2031.5,2031.1,4.92342]
[1742397621901,4.10683327,2031.3,2031.1,4.92326]
[1742397623582,9.02937327,2031.5,2031.1,9.84657]
[1742397623783,4.10683327,2031.5,2031.2,4.92314]
[1742397624007,4.92214,2031.7,2031.3,5.7205]
[1742397624216,4.92223,2031.6,2031.3,5.7205]
[1742397624632,9.02883327,2031.7,2031.3,10.64327]
[1742397624833,9.02883327,2031.7,2031.3,5.72047]
[1742397625018,13.95099327,2031.7,2031.3,5.72047]
[1742397625194,14.16183327,2031.7,2031.3,5.72047]
[1742397625630,4.10683327,2031.5,2031.2,4.92317]
[1742397625816,9.02931327,2031.5,2031.2,4.92317]
[1742397626018,4.10683327,2031.5,2031.2,4.92317]
[1742397626892,4.10683327,2031.5,2031.2,9.8462]
[1742397627112,4.10683327,2031.5,2031.2,4.92303]
[1742397627335,4.10683327,2031.5,2031.3,4.92287]
[1742397627635,4.10683327,2031.5,2031.3,4.92282]
[1742397627812,4.10683327,2031.5,2031.2,4.92316]
[1742397628210,10.05501,2031.7,2031.3,4.9229]
[1742397628521,9.02906327,2031.6,2031.2,4.923]
[1742397628844,9.02906327,2031.6,2031.3,4.92289]
[1742397629043,9.02906327,2031.6,2031.2,4.923]
[1742397629225,4.9225,2031.5,2031.2,4.923]
[1742397629543,9.02906327,2031.6,2031.3,4.92286]
[1742397629834,4.92249,2031.5,2031.2,4.923]
[1742397630357,4.10683327,2031.6,2031.3,4.92273]
[1742397630551,4.92203,2031.7,2031.4,4.92263]
[1742397630834,14.95910327,2031.8,2031.4,9.84518]
[1742397631006,5.718,2032.0,2031.6,4.92215]